[Event "Titled Tuesday Blitz December 27 Late 2022"]
[White "Rosenberg, Evan S"]
[Black "Potapova, Margarita"]
[WhiteFideId "2019299"]
[BlackFideId "14126869"]
[WhiteElo "1956"]
[BlackElo "2104"]
[Result "1-0"]
[Round "03"]
[TimeControl "180+2"]
[Date "2022.12.27"]
[WhiteClock "0:00:09"]
[BlackClock "0:00:15"]

1. d4 {[%clk 0:03:00]}  Nf6 {[%clk 0:02:59]} 2. Nf3 {[%clk 0:03:01]}  d5 {[%clk 0:02:57]} 3. c3 {[%clk 0:03:01]}  g6 {[%clk 0:02:56]} 4. h3 {[%clk 0:02:59]}  Bg7 {[%clk 0:02:57]} 5. Bf4 {[%clk 0:02:58]}  O-O {[%clk 0:02:57]} 6. Qc2 {[%clk 0:02:57]}  Bf5 {[%clk 0:02:56]} 7. Qb3 {[%clk 0:02:57]}  Nbd7 {[%clk 0:02:54]} 8. g4 {[%clk 0:02:48]}  Be4 {[%clk 0:02:50]} 9. Nbd2 {[%clk 0:02:47]}  c5 {[%clk 0:02:49]} 10. Qxb7 {[%clk 0:02:41]}  e5 {[%clk 0:02:40]} 11. dxe5 {[%clk 0:02:16]}  d4 {[%clk 0:02:40]} 12. Qb3 {[%clk 0:01:54]}  Rb8 {[%clk 0:02:34]} 13. Qa3 {[%clk 0:01:51]}  Qc7 {[%clk 0:02:00]} 14. exf6 {[%clk 0:01:43]}  Qxf4 {[%clk 0:02:00]} 15. fxg7 {[%clk 0:01:44]}  Rfe8 {[%clk 0:02:01]} 16. Bg2 {[%clk 0:00:46]}  d3 {[%clk 0:00:52]} 17. O-O {[%clk 0:00:37]}  dxe2 {[%clk 0:00:51]} 18. Rfe1 {[%clk 0:00:38]}  Bd3 {[%clk 0:00:49]} 19. Qxa7 {[%clk 0:00:35]}  Red8 {[%clk 0:00:45]} 20. b4 {[%clk 0:00:26]}  cxb4 {[%clk 0:00:36]} 21. cxb4 {[%clk 0:00:24]}  Rxb4 {[%clk 0:00:37]} 22. Qe3 {[%clk 0:00:21]}  Qd6 {[%clk 0:00:35]} 23. Rxe2 {[%clk 0:00:16]}  Bxe2 {[%clk 0:00:32]} 24. Qxe2 {[%clk 0:00:17]}  Nc5 {[%clk 0:00:29]} 25. Rf1 {[%clk 0:00:13]}  Rb2 {[%clk 0:00:27]} 26. Rd1 {[%clk 0:00:08]}  Rxa2 {[%clk 0:00:24]} 27. Qe3 {[%clk 0:00:08]}  Ne6 {[%clk 0:00:22]} 28. Bf1 {[%clk 0:00:05]}  Kxg7 {[%clk 0:00:17]} 29. Bc4 {[%clk 0:00:06]}  Rc2 {[%clk 0:00:15]} 30. Bxe6 {[%clk 0:00:04]}  fxe6 {[%clk 0:00:13]} 31. Kf1 {[%clk 0:00:02]}  Qa6+ {[%clk 0:00:12]} 32. Qe2 {[%clk 0:00:02]}  Qd6 {[%clk 0:00:10]} 33. Ke1 {[%clk 0:00:01]}  Qb4 {[%clk 0:00:05]} 34. Qe5+ {[%clk 0:00:02]}  Kf7 {[%clk 0:00:05]} 35. Qe4 {[%clk 0:00:02]}  Qd6 {[%clk 0:00:02]} 36. Qe5 {[%clk 0:00:02]}  Qe7 {[%clk 0:00:02]} 37. Qe4 {[%clk 0:00:02]}  Qf6 {[%clk 0:00:02]} 38. Qxc2 {[%clk 0:00:02]}  Rd5 {[%clk 0:00:01]} 39. Qe4 {[%clk 0:00:03]}  Rd6 {[%clk 0:00:01]} 40. Ne5+ {[%clk 0:00:03]}  Ke7 {[%clk 0:00:01]} 41. Qb7+ {[%clk 0:00:03]}  Ke8 {[%clk 0:00:02]} 42. Qc8+ {[%clk 0:00:03]}  Rd8 {[%clk 0:00:02]} 43. Qc6+ {[%clk 0:00:03]}  Ke7 {[%clk 0:00:03]} 44. Ndf3 {[%clk 0:00:03]}  Rxd1+ {[%clk 0:00:01]} 45. Kxd1 {[%clk 0:00:04]}  Qf4 {[%clk 0:00:02]} 46. Qd7+ {[%clk 0:00:04]}  Kf8 {[%clk 0:00:03]} 47. Qf7+ {[%clk 0:00:04]}  Qxf7 {[%clk 0:00:03]} 48. Nxf7 {[%clk 0:00:05]}  Kxf7 {[%clk 0:00:04]} 49. Ke2 {[%clk 0:00:05]}  Kf6 {[%clk 0:00:04]} 50. Ke3 {[%clk 0:00:06]}  e5 {[%clk 0:00:05]} 51. Ke4 {[%clk 0:00:06]}  Ke6 {[%clk 0:00:06]} 52. Nxe5 {[%clk 0:00:07]}  Ke7 {[%clk 0:00:07]} 53. f4 {[%clk 0:00:07]}  Kf8 {[%clk 0:00:07]} 54. f5 {[%clk 0:00:07]}  Ke8 {[%clk 0:00:08]} 55. fxg6 {[%clk 0:00:08]}  Kf8 {[%clk 0:00:09]} 56. gxh7 {[%clk 0:00:08]}  Ke8 {[%clk 0:00:10]} 57. h8=Q+ {[%clk 0:00:08]}  Ke7 {[%clk 0:00:11]} 58. Qg7+ {[%clk 0:00:09]}  Kd6 {[%clk 0:00:12]} 59. Qd7+ {[%clk 0:00:09]}  Kc5 {[%clk 0:00:13]} 60. Qd5+ {[%clk 0:00:09]}  Kb4 {[%clk 0:00:13]} 61. Kd3 {[%clk 0:00:09]}  Ka3 {[%clk 0:00:14]} 62. Qb5 {[%clk 0:00:09]}  Ka2 {[%clk 0:00:14]} 63. Kc2 {[%clk 0:00:09]}  Ka1 {[%clk 0:00:15]} 64. Qb1# {[%clk 0:00:09]} 1-0


[Site "https://www.chess.com"]

[Event "Titled Tuesday Blitz December 27 Late 2022"]
[White "Sadilek, Peter"]
[Black "Melikyan, Gnel"]
[WhiteFideId "1616439"]
[BlackFideId "54109990"]
[WhiteElo "2314"]
[BlackElo "2238"]
[Result "1/2-1/2"]
[Round "03"]
[TimeControl "180+2"]
[Date "2022.12.27"]
[WhiteClock "0:00:09"]
[BlackClock "0:00:10"]

1. Nf3 {[%clk 0:03:00]}  d6 {[%clk 0:02:57]} 2. e4 {[%clk 0:03:00]}  Nf6 {[%clk 0:02:56]} 3. Nc3 {[%clk 0:03:00]}  e5 {[%clk 0:02:56]} 4. d4 {[%clk 0:03:00]}  Nc6 {[%clk 0:02:57]} 5. Bb5 {[%clk 0:02:58]}  Bd7 {[%clk 0:02:57]} 6. O-O {[%clk 0:02:57]}  a6 {[%clk 0:02:55]} 7. Bxc6 {[%clk 0:02:56]}  Bxc6 {[%clk 0:02:56]} 8. dxe5 {[%clk 0:02:57]}  Nxe4 {[%clk 0:02:56]} 9. Nxe4 {[%clk 0:02:45]}  Bxe4 {[%clk 0:02:57]} 10. exd6 {[%clk 0:02:42]}  Qxd6 {[%clk 0:02:41]} 11. Qe2 {[%clk 0:02:41]}  f5 {[%clk 0:02:41]} 12. Ng5 {[%clk 0:02:20]}  Qe7 {[%clk 0:02:32]} 13. Bf4 {[%clk 0:02:08]}  O-O-O {[%clk 0:02:23]} 14. Rfe1 {[%clk 0:02:00]}  Re8 {[%clk 0:01:59]} 15. Qc4 {[%clk 0:01:42]}  Qc5 {[%clk 0:01:47]} 16. Qf7 {[%clk 0:01:09]}  Re7 {[%clk 0:01:34]} 17. Nxe4 {[%clk 0:01:05]}  Rxf7 {[%clk 0:01:31]} 18. Nxc5 {[%clk 0:01:05]}  Bxc5 {[%clk 0:01:32]} 19. Be5 {[%clk 0:01:01]}  Re8 {[%clk 0:01:28]} 20. Kf1 {[%clk 0:01:01]}  Kd7 {[%clk 0:01:21]} 21. Rad1+ {[%clk 0:01:00]}  Bd6 {[%clk 0:01:19]} 22. Bxd6 {[%clk 0:00:59]}  Rxe1+ {[%clk 0:01:19]} 23. Kxe1 {[%clk 0:01:00]}  cxd6 {[%clk 0:01:19]} 24. h4 {[%clk 0:00:56]}  f4 {[%clk 0:01:19]} 25. Ke2 {[%clk 0:00:56]}  Rf5 {[%clk 0:01:16]} 26. Kf3 {[%clk 0:00:55]}  h6 {[%clk 0:01:15]} 27. Rd4 {[%clk 0:00:41]}  g5 {[%clk 0:01:14]} 28. hxg5 {[%clk 0:00:41]}  hxg5 {[%clk 0:01:15]} 29. Kg4 {[%clk 0:00:42]}  Re5 {[%clk 0:01:13]} 30. Rb4 {[%clk 0:00:40]}  b5 {[%clk 0:01:06]} 31. c4 {[%clk 0:00:36]}  bxc4 {[%clk 0:01:00]} 32. Rxc4 {[%clk 0:00:37]}  Re2 {[%clk 0:01:00]} 33. Kf3 {[%clk 0:00:24]}  Rxb2 {[%clk 0:00:54]} 34. Ra4 {[%clk 0:00:25]}  Ke6 {[%clk 0:00:39]} 35. Rxa6 {[%clk 0:00:23]}  Ke5 {[%clk 0:00:37]} 36. Ra8 {[%clk 0:00:13]}  d5 {[%clk 0:00:31]} 37. Re8+ {[%clk 0:00:12]}  Kd4 {[%clk 0:00:32]} 38. Rg8 {[%clk 0:00:12]}  Rxa2 {[%clk 0:00:30]} 39. Rxg5 {[%clk 0:00:13]}  Kc4 {[%clk 0:00:30]} 40. Rf5 {[%clk 0:00:12]}  d4 {[%clk 0:00:31]} 41. Rxf4 {[%clk 0:00:11]}  Kc3 {[%clk 0:00:27]} 42. Rf8 {[%clk 0:00:09]}  d3 {[%clk 0:00:27]} 43. Rc8+ {[%clk 0:00:09]}  Kd2 {[%clk 0:00:28]} 44. g4 {[%clk 0:00:09]}  Ke1 {[%clk 0:00:28]} 45. g5 {[%clk 0:00:07]}  Rxf2+ {[%clk 0:00:27]} 46. Kg3 {[%clk 0:00:07]}  d2 {[%clk 0:00:26]} 47. Rd8 {[%clk 0:00:06]}  Rf1 {[%clk 0:00:07]} 48. Kg4 {[%clk 0:00:05]}  Ke2 {[%clk 0:00:07]} 49. Rxd2+ {[%clk 0:00:05]}  Kxd2 {[%clk 0:00:07]} 50. g6 {[%clk 0:00:06]}  Ke3 {[%clk 0:00:07]} 51. Kg5 {[%clk 0:00:05]}  Ke4 {[%clk 0:00:08]} 52. g7 {[%clk 0:00:06]}  Ke5 {[%clk 0:00:09]} 53. Kg6 {[%clk 0:00:06]}  Rg1+ {[%clk 0:00:09]} 54. Kf7 {[%clk 0:00:07]}  Rf1+ {[%clk 0:00:09]} 55. Kg6 {[%clk 0:00:07]}  Kd6 {[%clk 0:00:09]} 56. g8=Q {[%clk 0:00:07]}  Rg1+ {[%clk 0:00:09]} 57. Kf7 {[%clk 0:00:08]}  Rxg8 {[%clk 0:00:10]} 58. Kxg8 {[%clk 0:00:09]} 1/2-1/2


[Site "https://www.chess.com"]

[Event "Titled Tuesday Blitz December 27 Late 2022"]
[White "Sailer, Mike"]
[Black "Bas Mas, Jose Joaquin"]
[WhiteFideId "2012901"]
[BlackFideId "22219064"]
[WhiteElo "2109"]
[BlackElo "2197"]
[Result "1-0"]
[Round "03"]
[TimeControl "180+2"]
[Date "2022.12.27"]
[WhiteClock "0:00:15"]
[BlackClock "0:01:01"]

1. d4 {[%clk 0:03:00]}  f5 {[%clk 0:02:59]} 2. g3 {[%clk 0:02:49]}  Nf6 {[%clk 0:02:58]} 3. Bg2 {[%clk 0:02:49]}  e6 {[%clk 0:02:58]} 4. b3 {[%clk 0:02:50]}  Bb4+ {[%clk 0:02:57]} 5. c3 {[%clk 0:02:50]}  Be7 {[%clk 0:02:57]} 6. Bb2 {[%clk 0:02:51]}  O-O {[%clk 0:02:56]} 7. Nd2 {[%clk 0:02:49]}  d5 {[%clk 0:02:56]} 8. Nh3 {[%clk 0:02:41]}  c6 {[%clk 0:02:55]} 9. Nf4 {[%clk 0:02:36]}  a5 {[%clk 0:02:46]} 10. a4 {[%clk 0:02:29]}  Na6 {[%clk 0:02:46]} 11. O-O {[%clk 0:02:29]}  Nc7 {[%clk 0:02:44]} 12. f3 {[%clk 0:02:23]}  Bd6 {[%clk 0:02:39]} 13. Nd3 {[%clk 0:02:22]}  b6 {[%clk 0:02:33]} 14. e4 {[%clk 0:02:18]}  fxe4 {[%clk 0:02:28]} 15. fxe4 {[%clk 0:02:18]}  Ba6 {[%clk 0:02:22]} 16. Qc2 {[%clk 0:02:12]}  dxe4 {[%clk 0:02:18]} 17. Nxe4 {[%clk 0:02:12]}  Ncd5 {[%clk 0:02:17]} 18. Nxd6 {[%clk 0:02:07]}  Ne3 {[%clk 0:02:04]} 19. Qe2 {[%clk 0:01:34]}  Nxf1 {[%clk 0:01:57]} 20. Qxe6+ {[%clk 0:01:34]}  Kh8 {[%clk 0:01:57]} 21. Ne5 {[%clk 0:01:18]}  Ra7 {[%clk 0:01:41]} 22. Bxf1 {[%clk 0:01:10]}  Bc8 {[%clk 0:01:34]} 23. Ndf7+ {[%clk 0:00:42]}  Kg8 {[%clk 0:01:15]} 24. Nh6+ {[%clk 0:00:40]}  Kh8 {[%clk 0:01:12]} 25. Nef7+ {[%clk 0:00:37]}  Raxf7 {[%clk 0:01:07]} 26. Nxf7+ {[%clk 0:00:37]}  Rxf7 {[%clk 0:01:06]} 27. Qxf7 {[%clk 0:00:35]}  Nd5 {[%clk 0:01:01]} 28. Re1 {[%clk 0:00:31]}  Bd7 {[%clk 0:01:01]} 29. Bh3 {[%clk 0:00:15]} 1-0


[Site "https://www.chess.com"]

[Event "Titled Tuesday Blitz December 27 Late 2022"]
[White "Salman, Pavel"]
[Black "Oro, Faustino"]
[WhiteFideId "24153753"]
[BlackFideId "20000197"]
[WhiteElo "2287"]
[BlackElo "2269"]
[Result "1-0"]
[Round "03"]
[TimeControl "180+2"]
[Date "2022.12.27"]
[WhiteClock "0:00:15"]
[BlackClock "0:00:08"]

1. Nf3 {[%clk 0:03:00]}  Nf6 {[%clk 0:02:59]} 2. g3 {[%clk 0:03:00]}  d5 {[%clk 0:02:59]} 3. Bg2 {[%clk 0:03:01]}  c6 {[%clk 0:03:00]} 4. O-O {[%clk 0:03:02]}  Bf5 {[%clk 0:02:58]} 5. d3 {[%clk 0:03:02]}  e6 {[%clk 0:02:58]} 6. Nfd2 {[%clk 0:03:03]}  h6 {[%clk 0:02:55]} 7. e4 {[%clk 0:03:03]}  Bh7 {[%clk 0:02:56]} 8. Nc3 {[%clk 0:03:03]}  Be7 {[%clk 0:02:51]} 9. Qe2 {[%clk 0:03:03]}  O-O {[%clk 0:02:52]} 10. Kh1 {[%clk 0:03:03]}  c5 {[%clk 0:02:45]} 11. f4 {[%clk 0:03:02]}  Nc6 {[%clk 0:02:44]} 12. Nf3 {[%clk 0:02:59]}  Nd4 {[%clk 0:02:38]} 13. Nxd4 {[%clk 0:02:58]}  cxd4 {[%clk 0:02:38]} 14. Nd1 {[%clk 0:02:56]}  Qc7 {[%clk 0:02:28]} 15. g4 {[%clk 0:02:35]}  dxe4 {[%clk 0:02:12]} 16. dxe4 {[%clk 0:02:36]}  Nd7 {[%clk 0:02:12]} 17. c3 {[%clk 0:01:59]}  dxc3 {[%clk 0:02:01]} 18. Nxc3 {[%clk 0:02:00]}  Nc5 {[%clk 0:01:55]} 19. Be3 {[%clk 0:01:57]}  Rad8 {[%clk 0:01:50]} 20. Rac1 {[%clk 0:01:56]}  Qa5 {[%clk 0:01:49]} 21. f5 {[%clk 0:01:42]}  Rc8 {[%clk 0:01:02]} 22. e5 {[%clk 0:01:35]}  Rfd8 {[%clk 0:00:51]} 23. f6 {[%clk 0:01:23]}  Bf8 {[%clk 0:00:51]} 24. Qf3 {[%clk 0:01:04]}  Rd7 {[%clk 0:00:41]} 25. g5 {[%clk 0:01:01]}  hxg5 {[%clk 0:00:36]} 26. Bxg5 {[%clk 0:01:00]}  Nd3 {[%clk 0:00:35]} 27. Rcd1 {[%clk 0:00:27]}  Nxe5 {[%clk 0:00:33]} 28. Qg3 {[%clk 0:00:21]}  Rxd1 {[%clk 0:00:28]} 29. Rxd1 {[%clk 0:00:22]}  Bg6 {[%clk 0:00:24]} 30. fxg7 {[%clk 0:00:22]}  Bxg7 {[%clk 0:00:24]} 31. Bxb7 {[%clk 0:00:21]}  Re8 {[%clk 0:00:20]} 32. Bg2 {[%clk 0:00:21]}  Nc4 {[%clk 0:00:19]} 33. Ne4 {[%clk 0:00:20]}  Nxb2 {[%clk 0:00:18]} 34. Rg1 {[%clk 0:00:19]}  Qf5 {[%clk 0:00:17]} 35. Nd6 {[%clk 0:00:16]}  Qd3 {[%clk 0:00:13]} 36. Nxe8 {[%clk 0:00:14]}  Qd7 {[%clk 0:00:08]} 37. Nf6+ {[%clk 0:00:14]}  Bxf6 {[%clk 0:00:08]} 38. Bxf6 {[%clk 0:00:15]}  Nd3 {[%clk 0:00:08]} 39. Qb8+ {[%clk 0:00:15]} 1-0


[Site "https://www.chess.com"]

[Event "Titled Tuesday Blitz December 27 Late 2022"]
[White "Skvortsov, Andrei"]
[Black "Cruz, William Ferreira Da"]
[WhiteFideId "24108600"]
[BlackFideId "2118050"]
[WhiteElo "2313"]
[BlackElo "2216"]
[Result "1-0"]
[Round "03"]
[TimeControl "180+2"]
[Date "2022.12.27"]
[WhiteClock "0:00:07"]
[BlackClock "0:00:03"]

1. c4 {[%clk 0:02:55]}  Nf6 {[%clk 0:02:58]} 2. Nc3 {[%clk 0:02:55]}  g6 {[%clk 0:02:58]} 3. g3 {[%clk 0:02:52]}  Bg7 {[%clk 0:02:55]} 4. Bg2 {[%clk 0:02:52]}  O-O {[%clk 0:02:56]} 5. e4 {[%clk 0:02:53]}  d6 {[%clk 0:02:56]} 6. d4 {[%clk 0:02:52]}  Nbd7 {[%clk 0:02:55]} 7. Nge2 {[%clk 0:02:52]}  e5 {[%clk 0:02:56]} 8. O-O {[%clk 0:02:53]}  exd4 {[%clk 0:02:56]} 9. Nxd4 {[%clk 0:02:54]}  Re8 {[%clk 0:02:56]} 10. Re1 {[%clk 0:02:54]}  Nc5 {[%clk 0:02:56]} 11. h3 {[%clk 0:02:53]}  Bd7 {[%clk 0:02:56]} 12. Bg5 {[%clk 0:02:52]}  h6 {[%clk 0:02:55]} 13. Bf4 {[%clk 0:02:52]}  a5 {[%clk 0:02:51]} 14. Nd5 {[%clk 0:02:30]}  Nfxe4 {[%clk 0:02:34]} 15. Nf3 {[%clk 0:01:59]}  Nf6 {[%clk 0:02:28]} 16. Rxe8+ {[%clk 0:01:56]}  Bxe8 {[%clk 0:02:27]} 17. Nc3 {[%clk 0:01:54]}  Bc6 {[%clk 0:02:24]} 18. Be3 {[%clk 0:01:47]}  Qd7 {[%clk 0:02:02]} 19. g4 {[%clk 0:01:39]}  Re8 {[%clk 0:01:57]} 20. Rc1 {[%clk 0:01:37]}  Nfe4 {[%clk 0:01:51]} 21. Nxe4 {[%clk 0:01:36]}  Nxe4 {[%clk 0:01:44]} 22. Nd4 {[%clk 0:01:30]}  Nf6 {[%clk 0:01:25]} 23. Nxc6 {[%clk 0:01:26]}  bxc6 {[%clk 0:01:25]} 24. Qa4 {[%clk 0:01:26]}  Ne4 {[%clk 0:01:14]} 25. Qxa5 {[%clk 0:01:21]}  Bxb2 {[%clk 0:01:12]} 26. Rb1 {[%clk 0:01:20]}  Bg7 {[%clk 0:01:10]} 27. Rb7 {[%clk 0:01:17]}  Re7 {[%clk 0:00:55]} 28. Rb8+ {[%clk 0:00:51]}  Kh7 {[%clk 0:00:50]} 29. Qa4 {[%clk 0:00:42]}  d5 {[%clk 0:00:39]} 30. cxd5 {[%clk 0:00:40]}  cxd5 {[%clk 0:00:39]} 31. Qxd7 {[%clk 0:00:40]}  Rxd7 {[%clk 0:00:39]} 32. a4 {[%clk 0:00:40]}  Nc3 {[%clk 0:00:36]} 33. a5 {[%clk 0:00:38]}  d4 {[%clk 0:00:37]} 34. Bd2 {[%clk 0:00:34]}  c5 {[%clk 0:00:32]} 35. a6 {[%clk 0:00:33]}  Be5 {[%clk 0:00:25]} 36. Re8 {[%clk 0:00:25]}  Nb1 {[%clk 0:00:23]} 37. Rxe5 {[%clk 0:00:22]}  Nxd2 {[%clk 0:00:22]} 38. Bb7 {[%clk 0:00:22]}  Nc4 {[%clk 0:00:20]} 39. Rxc5 {[%clk 0:00:13]}  Nb6 {[%clk 0:00:19]} 40. Rb5 {[%clk 0:00:12]}  d3 {[%clk 0:00:12]} 41. Rxb6 {[%clk 0:00:11]}  d2 {[%clk 0:00:12]} 42. Bf3 {[%clk 0:00:07]}  d1=Q+ {[%clk 0:00:13]} 43. Bxd1 {[%clk 0:00:07]}  Rxd1+ {[%clk 0:00:13]} 44. Kg2 {[%clk 0:00:08]}  Ra1 {[%clk 0:00:14]} 45. Kf3 {[%clk 0:00:08]}  Kg7 {[%clk 0:00:14]} 46. h4 {[%clk 0:00:09]}  Ra3+ {[%clk 0:00:14]} 47. Kg2 {[%clk 0:00:09]}  Ra4 {[%clk 0:00:14]} 48. f3 {[%clk 0:00:09]}  Ra2+ {[%clk 0:00:14]} 49. Kg3 {[%clk 0:00:10]}  Ra4 {[%clk 0:00:15]} 50. h5 {[%clk 0:00:10]}  gxh5 {[%clk 0:00:14]} 51. gxh5 {[%clk 0:00:10]}  Ra5 {[%clk 0:00:14]} 52. Kg4 {[%clk 0:00:09]}  Ra4+ {[%clk 0:00:14]} 53. Kg3 {[%clk 0:00:09]}  Ra5 {[%clk 0:00:14]} 54. Kh4 {[%clk 0:00:09]}  Ra4+ {[%clk 0:00:14]} 55. Kh3 {[%clk 0:00:09]}  Ra5 {[%clk 0:00:15]} 56. Kg4 {[%clk 0:00:10]}  Ra4+ {[%clk 0:00:15]} 57. f4 {[%clk 0:00:11]}  Ra5 {[%clk 0:00:15]} 58. Rc6 {[%clk 0:00:11]}  Ra4 {[%clk 0:00:14]} 59. Kf3 {[%clk 0:00:10]}  Ra5 {[%clk 0:00:14]} 60. Ke4 {[%clk 0:00:06]}  Rxh5 {[%clk 0:00:13]} 61. f5 {[%clk 0:00:06]}  Rh4+ {[%clk 0:00:13]} 62. Kd5 {[%clk 0:00:07]}  Ra4 {[%clk 0:00:14]} 63. Kc5 {[%clk 0:00:07]}  h5 {[%clk 0:00:14]} 64. Kb5 {[%clk 0:00:07]}  Ra2 {[%clk 0:00:14]} 65. Rc4 {[%clk 0:00:08]}  Kf6 {[%clk 0:00:14]} 66. Ra4 {[%clk 0:00:08]}  Rb2+ {[%clk 0:00:14]} 67. Kc6 {[%clk 0:00:09]}  Rb8 {[%clk 0:00:14]} 68. a7 {[%clk 0:00:09]}  Rh8 {[%clk 0:00:14]} 69. Kb7 {[%clk 0:00:07]}  Kxf5 {[%clk 0:00:13]} 70. Ra5+ {[%clk 0:00:08]}  Kg4 {[%clk 0:00:13]} 71. Ra4+ {[%clk 0:00:08]}  Kg5 {[%clk 0:00:12]} 72. Rc4 {[%clk 0:00:08]}  f5 {[%clk 0:00:11]} 73. Rc5 {[%clk 0:00:05]}  Rh7+ {[%clk 0:00:09]} 74. Rc7 {[%clk 0:00:05]}  Rh8 {[%clk 0:00:10]} 75. Rg7+ {[%clk 0:00:05]}  Kf6 {[%clk 0:00:10]} 76. Rc7 {[%clk 0:00:04]}  f4 {[%clk 0:00:10]} 77. Kb6 {[%clk 0:00:04]}  Ra8 {[%clk 0:00:09]} 78. Rc5 {[%clk 0:00:02]}  f3 {[%clk 0:00:07]} 79. Rxh5 {[%clk 0:00:02]}  Kg6 {[%clk 0:00:06]} 80. Rh3 {[%clk 0:00:02]}  Rf8 {[%clk 0:00:05]} 81. Rxf3 {[%clk 0:00:02]}  Rxf3 {[%clk 0:00:05]} 82. a8=Q {[%clk 0:00:03]}  Rf6+ {[%clk 0:00:05]} 83. Kc5 {[%clk 0:00:03]}  Rf5+ {[%clk 0:00:05]} 84. Kd4 {[%clk 0:00:04]}  Rf6 {[%clk 0:00:06]} 85. Qg8+ {[%clk 0:00:04]}  Kf5 {[%clk 0:00:05]} 86. Kd5 {[%clk 0:00:05]}  Rg6 {[%clk 0:00:05]} 87. Qf7+ {[%clk 0:00:05]}  Kg5 {[%clk 0:00:06]} 88. Qh7 {[%clk 0:00:06]}  Rf6 {[%clk 0:00:05]} 89. Ke5 {[%clk 0:00:06]}  Rg6 {[%clk 0:00:06]} 90. Qh3 {[%clk 0:00:06]}  Rh6 {[%clk 0:00:05]} 91. Qg3+ {[%clk 0:00:06]}  Kh5 {[%clk 0:00:03]} 92. Kf5 {[%clk 0:00:07]} 1-0


[Site "https://www.chess.com"]

[Event "Titled Tuesday Blitz December 27 Late 2022"]
[White "Sourath Biswas"]
[Black "Samsonkin, Artiom"]
[WhiteFideId "35091484"]
[BlackFideId "13503111"]
[WhiteElo "2281"]
[BlackElo "2420"]
[Result "0-1"]
[Round "03"]
[TimeControl "180+2"]
[Date "2022.12.27"]
[WhiteClock "0:00:07"]
[BlackClock "0:00:58"]

1. d4 {[%clk 0:03:00]}  Nf6 {[%clk 0:02:59]} 2. Bf4 {[%clk 0:03:00]}  e6 {[%clk 0:03:00]} 3. e3 {[%clk 0:02:57]}  d5 {[%clk 0:02:54]} 4. Nf3 {[%clk 0:02:57]}  c5 {[%clk 0:02:55]} 5. c3 {[%clk 0:02:57]}  Nc6 {[%clk 0:02:56]} 6. Nbd2 {[%clk 0:02:58]}  cxd4 {[%clk 0:02:56]} 7. exd4 {[%clk 0:02:58]}  Nh5 {[%clk 0:02:57]} 8. Be3 {[%clk 0:02:59]}  Bd6 {[%clk 0:02:57]} 9. Ne5 {[%clk 0:02:59]}  g6 {[%clk 0:02:57]} 10. g4 {[%clk 0:03:00]}  Nf6 {[%clk 0:02:48]} 11. h4 {[%clk 0:02:49]}  Nxe5 {[%clk 0:02:39]} 12. dxe5 {[%clk 0:02:46]}  Bxe5 {[%clk 0:02:40]} 13. Nf3 {[%clk 0:01:38]}  Bd6 {[%clk 0:02:26]} 14. Bd4 {[%clk 0:01:35]}  Rg8 {[%clk 0:02:01]} 15. Bd3 {[%clk 0:01:30]}  Nxg4 {[%clk 0:01:54]} 16. Qe2 {[%clk 0:01:20]}  Qe7 {[%clk 0:01:42]} 17. O-O-O {[%clk 0:01:00]}  a6 {[%clk 0:01:23]} 18. Rhe1 {[%clk 0:00:56]}  h5 {[%clk 0:01:21]} 19. Qc2 {[%clk 0:00:22]}  Bd7 {[%clk 0:01:17]} 20. Kb1 {[%clk 0:00:17]}  O-O-O {[%clk 0:01:16]} 21. Qb3 {[%clk 0:00:15]}  Bc5 {[%clk 0:01:08]} 22. Bxc5 {[%clk 0:00:15]}  Qxc5 {[%clk 0:01:08]} 23. c4 {[%clk 0:00:13]}  Bc6 {[%clk 0:01:02]} 24. Rc1 {[%clk 0:00:11]}  d4 {[%clk 0:00:59]} 25. Qc2 {[%clk 0:00:07]}  Bxf3 {[%clk 0:00:58]} 0-1


[Site "https://www.chess.com"]

[Event "Titled Tuesday Blitz December 27 Late 2022"]
[White "Subelj, Jan"]
[Black "Moradiabadi, Elshan"]
[WhiteFideId "14618583"]
[BlackFideId "12501255"]
[WhiteElo "2513"]
[BlackElo "2507"]
[Result "1-0"]
[Round "03"]
[TimeControl "180+2"]
[Date "2022.12.27"]
[WhiteClock "0:01:07"]
[BlackClock "0:01:46"]

1. g3 {[%clk 0:03:00]}  d5 {[%clk 0:02:57]} 2. Bg2 {[%clk 0:02:58]}  c6 {[%clk 0:02:58]} 3. Nf3 {[%clk 0:02:55]}  Bg4 {[%clk 0:02:57]} 4. c4 {[%clk 0:02:54]}  e6 {[%clk 0:02:56]} 5. O-O {[%clk 0:02:52]}  Nd7 {[%clk 0:02:54]} 6. cxd5 {[%clk 0:02:45]}  exd5 {[%clk 0:02:53]} 7. d3 {[%clk 0:02:45]}  Ngf6 {[%clk 0:02:53]} 8. Nc3 {[%clk 0:02:43]}  Bc5 {[%clk 0:02:44]} 9. Qb3 {[%clk 0:02:42]}  Qb6 {[%clk 0:02:43]} 10. Qc2 {[%clk 0:02:42]}  O-O {[%clk 0:02:37]} 11. Na4 {[%clk 0:02:38]}  Qb5 {[%clk 0:02:36]} 12. Nxc5 {[%clk 0:02:36]}  Qxc5 {[%clk 0:02:37]} 13. Qb3 {[%clk 0:02:32]}  Qb6 {[%clk 0:02:37]} 14. Qc2 {[%clk 0:02:32]}  Rfe8 {[%clk 0:02:36]} 15. h3 {[%clk 0:02:29]}  Bh5 {[%clk 0:02:34]} 16. b3 {[%clk 0:02:23]}  d4 {[%clk 0:02:33]} 17. Bb2 {[%clk 0:02:14]}  c5 {[%clk 0:02:34]} 18. g4 {[%clk 0:02:13]}  Bg6 {[%clk 0:02:33]} 19. Nh4 {[%clk 0:02:13]}  Rac8 {[%clk 0:02:31]} 20. f4 {[%clk 0:02:12]}  h5 {[%clk 0:02:28]} 21. f5 {[%clk 0:02:10]}  Bh7 {[%clk 0:02:28]} 22. g5 {[%clk 0:02:11]}  Ne5 {[%clk 0:02:06]} 23. gxf6 {[%clk 0:02:07]}  Qxf6 {[%clk 0:02:07]} 24. Nf3 {[%clk 0:02:07]}  Qxf5 {[%clk 0:02:07]} 25. Nxe5 {[%clk 0:01:56]}  Qxe5 {[%clk 0:02:08]} 26. Rf2 {[%clk 0:01:56]}  Re6 {[%clk 0:02:05]} 27. Raf1 {[%clk 0:01:53]}  Bg6 {[%clk 0:02:05]} 28. Bc1 {[%clk 0:01:51]}  b6 {[%clk 0:02:04]} 29. Bf4 {[%clk 0:01:51]}  Qf6 {[%clk 0:02:04]} 30. Qd2 {[%clk 0:01:47]}  Qe7 {[%clk 0:02:02]} 31. Bd5 {[%clk 0:01:43]}  Re3 {[%clk 0:02:02]} 32. Bg2 {[%clk 0:01:18]}  Re8 {[%clk 0:02:00]} 33. Bf3 {[%clk 0:01:18]}  Qe6 {[%clk 0:01:55]} 34. Qd1 {[%clk 0:01:10]}  Qxh3 {[%clk 0:01:55]} 35. Bxe3 {[%clk 0:01:10]}  dxe3 {[%clk 0:01:56]} 36. Rg2 {[%clk 0:01:10]}  Qe6 {[%clk 0:01:51]} 37. Qc1 {[%clk 0:01:08]}  h4 {[%clk 0:01:50]} 38. Qc4 {[%clk 0:01:08]}  Qe7 {[%clk 0:01:46]} 39. Rxg6 {[%clk 0:01:07]} 1-0


[Site "https://www.chess.com"]